Cogmind - Beta 15 @@@ ROGUE MODE // 2025.07.27 @ 16:54:00 Player: Saturn Result: Destroyed by G-47 Trooper with Particle Gun Performance ------------- Evolutions (2) 1000 Regions Visited (6) 1200 Robots Destroyed (51) 255 Value Destroyed (1151) 1151 Prototype IDs (2) 40 Alien Tech Used (0) 0 Bonus (-12) -12 TOTAL SCORE: 3634 Bonus ------- Friendly Fire -12 Cogmind --------- Core Integrity 0/550 Matter 300/300 Energy 100/100 System Corruption 7% Temperature Cool (74) Movement Walking (110) Location -8/Storage Parts ------- > --- POWER (2) -------- (None) > --- PROPULSION (4) --- Titanium Leg VSS Leg > --- UTILITY (3) ------ Disposable Heat Sink Large Storage Unit > --- WEAPON (2) ------- Heavy Mace > --- INVENTORY (15) --- Titanium Leg Titanium Leg Titanium Leg Titanium Leg VSS Leg VSS Leg VSS Leg Small Storage Unit Improved Terrain Scan Processor Weapon Shielding Reflective Plating Beam Rifle Light Cannon Improved Datajack Katana Peak State ------------ > --- POWER ------------ Light Ion Engine > --- PROPULSION ------- Carbon-fiber Leg Carbon-fiber Leg Titanium Leg VSS Leg > --- UTILITY ---------- Disposable Heat Sink Large Storage Unit Hacking Suite > --- WEAPON ----------- Heavy Mace Katana > --- INVENTORY -------- Carbon-fiber Leg Titanium Leg Titanium Leg Titanium Leg Titanium Leg Titanium Leg VSS Leg VSS Leg VSS Leg Small Storage Unit Weapon Shielding Reflective Plating Beam Rifle Improved Medium Laser Improved Datajack [Rating: 29] Favorites ----------- Power Ion Engine Engine Ion Engine Power Core Light Nuclear Core Propulsion Aluminum Leg Treads Light Treads Leg Aluminum Leg Utility Large Storage Unit Device Disposable Heat Sink Storage Large Storage Unit Hackware Hacking Suite Protection Light Armor Plating Weapon Maul Energy Gun Spread Laser Ballistic Gun Assault Rifle Special Weapon Mining Laser Impact Weapon Maul Slashing Weapon Katana Special Melee Weapon Improved Datajack Build | -11 -10 -10 -9 -9 -8 -8 ------- Run | Yrd Mat Min Mat Min Mat Sto Slots Evolved 4 | . . . 2 . 2 . Power 1 | . . . . . 1 . Propulsion 2 | . . . 2 . . . Utility 1 | . . . . . 1 . Weapon . | . . . . . . . Parts Attached 62 | 6 1 8 11 2 22 12 Power 9 | 1 . 2 . . 4 2 Engine 7 | 1 . 2 . . 2 2 Core 2 | . . . . . 2 . Reactor . | . . . . . . . Propulsion 21 | 2 . 1 3 2 9 4 Treads 9 | . . . 3 2 4 . Leg 12 | 2 . 1 . . 5 4 Wheel . | . . . . . . . Hover . | . . . . . . . Flight . | . . . . . . . Utility 13 | 1 1 2 2 . 6 1 Device 4 | . 1 1 . . 2 . Storage 4 | 1 . 1 1 . 1 . Processor . | . . . . . . . Hackware 1 | . . . . . . 1 Protection 4 | . . . 1 . 3 . Artifact . | . . . . . . . Weapon 19 | 2 . 3 6 . 3 5 Energy Gun 9 | 1 . 2 3 . 1 2 Energy Cannon . | . . . . . . . Ballistic Gun 5 | 1 . 1 2 . 1 . Ballistic Cannon . | . . . . . . . Launcher . | . . . . . . . Special Weapon 1 | . . . . . 1 . Impact Weapon 2 | . . . 1 . . 1 Slashing Weapon 1 | . . . . . . 1 Piercing Weapon . | . . . . . . . Special Melee Weapon 1 | . . . . . . 1 Unidentified Prototypes 2 | . . . 2 . . . Parts Lost 33 | . 1 6 2 2 17 5 Power 7 | . . 1 1 . 4 1 Propulsion 10 | . . 2 . 1 5 2 Utility 7 | . . 1 1 1 3 1 Weapon 9 | . 1 2 . . 5 1 Highest Loss Streak 5 | . 1 5 2 2 4 5 To Critical Strikes 1 | . . . . . . 1 Average Backups 10 | 1 5 6 10 14 11 12 Power . | . 1 1 1 1 . . Propulsion 5 | . 2 2 6 8 6 6 Utility 1 | . . . 1 1 1 2 Weapon 2 | . 1 1 2 4 3 2 Tool/Special . | . . . . . . . Unused Backups 23 | . 2 1 3 . 5 12 Power 1 | . 1 . . . . . Propulsion 13 | . . . . . 5 8 Utility 3 | . . . . . . 3 Weapon 6 | . 1 1 3 . . 1 Tool/Special . | . . . . . . . Average Slot Usage (%) 84 | . 98 82 89 84 78 82 Engine 6 | . 14 12 4 . 5 7 Core 1 | . . . . . 5 . Treads 15 | . . . 31 32 13 . Leg 18 | . 28 22 11 9 19 31 Device 6 | . 13 11 4 . 6 9 Storage 11 | . 14 14 11 11 9 9 Protection 3 | . . . 4 9 3 . Energy Gun 9 | . 14 7 7 11 11 2 Ballistic Gun 4 | . 14 12 5 . 2 . Impact Weapon 4 | . . . 8 11 . 3 Peak Build Rating 29 | 6 7 7 14 14 27 29 Average Rating 14 | 4 6 5 12 13 17 25 On Entrance 7 | . 6 6 6 13 10 14 Naked Turns . | . . . . . . . Heaviest Build 42 | 14 15 15 32 29 42 30 Greatest Support 89 | 20 20 20 63 66 89 62 Greatest Overweight (x) 4 | 4 . 2 1 . 2 2 Average Overweight (x) . | . . . . . . . Largest Inventory Capacity 15 | 8 8 8 15 15 15 15 Average Capacity 13 | 7 8 8 14 15 15 15 Most Carried 15 | 4 8 8 15 15 15 15 Average Carried 10 | 1 5 6 10 14 11 12 Final Capacity 15 | 8 8 8 15 15 15 15 Final Carried 15 | 4 8 4 15 15 15 15 Class Distribution -------------------- 71% | Mutant 28% | Scavenger-Mutant Dominant Class ---------------- Mutant | -10/Materials Mutant | -10/Mines Mutant | -9/Materials Mutant | -9/Mines Scavenger-Mutant | -8/Materials Mutant | -8/Storage Resources | -11 -10 -10 -9 -9 -8 -8 ----------- Run | Yrd Mat Min Mat Min Mat Sto Matter Collected 1130 | 226 77 93 193 30 324 187 Remotely . | . . . . . . . Salvage Created 1616 | . 153 215 471 72 422 283 Parts 98 | . 14 12 37 3 21 11 Haulers Intercepted 1 | . . . 1 . . . Recyclers Shooed 7 | . 2 . 4 . 1 . Parts Field Recycled . | . . . . . . . Retrieved Matter . | . . . . . . . Parts Self-Destructed . | . . . . . . . Prevented . | . . . . . . . Kills | -11 -10 -10 -9 -9 -8 -8 ------- Run | Yrd Mat Min Mat Min Mat Sto Combat Hostiles Destroyed 37 | . 5 5 14 2 7 4 Melee 4 | . . . . 1 . 3 Guns 31 | . 5 5 14 1 6 . Classes Destroyed 11 | . 3 1 3 2 1 1 Worker 4 | . . . 3 . 1 . Builder 2 | . . . . 1 1 . Hauler 1 | . . . 1 . . . Recycler 3 | . . 1 . . 1 1 Operator 1 | . . . . . 1 . Watcher 3 | . 1 . 2 . . . Swarmer 15 | . 3 3 9 . . . Grunt 13 | . 2 2 3 1 4 1 Brawler 3 | . . . . 1 1 1 Duelist 1 | . . . . . . 1 Sentry 5 | . . . 2 . 2 1 Best Kill Streak 5 | . 3 2 5 1 3 3 Combat Bots Only 3 | . 3 2 3 1 3 3 Max Kills in Single Turn 2 | . 1 1 2 1 1 1 Gunslinging . | . . . . . . . Exploded . | . . . . . . . Melee 1 | . . . . 1 . 1 Uniques/NPCs Destroyed . | . . . . . . . Combat | -11 -10 -10 -9 -9 -8 -8 -------- Run | Yrd Mat Min Mat Min Mat Sto Hostile Shots Fired 491 | . 30 81 62 36 217 65 Missed 140 | . 10 19 16 10 64 21 Hits 351 | . 20 62 46 26 153 44 Melee 18 | . . . . 3 4 11 Projectile 333 | . 20 62 46 23 149 33 AOE 1 | . . . 1 . . . Critical Strikes 15 | . . . . 2 9 4 Damage Taken 5045 | . 202 583 623 347 2454 836 Core 836 | . 18 118 59 90 375 176 Absorbed by Shields . | . . . . . . . Regen/Repaired (Parts) 161 | . . . . . . 161 Core Remaining (%) 69 | 100 . 45 . 62 . . Volleys Fired 173 | 1 19 31 52 10 54 6 Largest 2 | 1 2 2 2 1 2 1 Hottest 123 | 20 60 100 73 65 123 56 Shots Fired 243 | 1 38 45 62 10 81 6 Gun 239 | 1 38 45 62 10 77 6 Cannon . | . . . . . . . Launcher . | . . . . . . . Special 4 | . . . . . 4 . Kinetic 104 | 1 19 21 23 . 40 . Thermal 120 | . . 24 39 10 41 6 Explosive . | . . . . . . . Electromagnetic 19 | . 19 . . . . . Robot Hit Streak 17 | . 6 5 17 6 9 3 Robot Miss Streak 11 | . 4 4 11 4 4 2 Penetration Max . | . . . . . . . Secondary Targets 1 | . 1 . . . . . Max Gunslinging Chain 1 | . 1 . . . . . Shots Hit Robots 182 | . 19 23 50 15 60 15 Core Hits 81 | . 10 11 27 8 20 5 Critical Kills . | . . . . . . . Critical Parts Destroyed 4 | . . 1 1 . . 2 Critical Strikes 11 | . 1 1 3 . 3 3 Burn 5 | . . . 2 . 3 . Destroy 1 | . . 1 . . . . Corrupt 1 | . 1 . . . . . Smash 3 | . . . 1 . . 2 Sever 1 | . . . . . . 1 Melee Attacks 27 | . . . 6 7 . 14 Impact 24 | . . . 6 7 . 11 Slashing 3 | . . . . . . 3 Piercing . | . . . . . . . Sneak Attacks 3 | . . . 2 1 . . Combat Hostiles . | . . . . . . . Follow-up Attacks . | . . . . . . . Damage Inflicted 3259 | . 271 285 915 387 1003 398 Guns 2379 | . 271 285 688 149 943 43 Cannons . | . . . . . . . Explosions . | . . . . . . . Melee 820 | . . . 227 238 . 355 Ramming 12 | . . . . . 12 . Kinetic 999 | . 123 136 214 . 526 . Thermal 1280 | . . 149 474 149 465 43 Explosive . | . . . . . . . Electromagnetic 148 | . 148 . . . . . Impact 726 | . . . 227 238 . 261 Slashing 94 | . . . . . . 94 Piercing . | . . . . . . . Highest Corruption 7 | . . . . 2 1 7 Average Corruption 1 | . . . . 2 1 1 Corruption Purged . | . . . . . . . Corruption Blocked . | . . . . . . . Effects 10 | . . . . 2 5 3 Message Errors 1 | . . . . . . 1 Matter Fused 2 | . . . . . 2 . Heat Flow Errors 2 | . . . . 1 . 1 Energy Discharges 1 | . . . . . . 1 Data Loss (minor) 1 | . . . . 1 . . Misfires 1 | . . . . . 1 . Alerts 2 | . . . . . 2 . Overload Shots . | . . . . . . . Overflow Damage 246 | . . . 122 41 . 83 Projectiles . | . . . . . . . Explosions . | . . . . . . . Melee 246 | . . . 122 41 . 83 Knockbacks 5 | . . . 4 1 . . Impact 4 | . . . 3 1 . . Kinetic . | . . . . . . . Secondary 1 | . . . 1 . . . Self-Inflicted Damage . | . . . . . . . Shots . | . . . . . . . Rammed 6 | . . . . . 6 . Targets Rammed 6 | . . . . . 6 . Kicked . | . . . . . . . Crushed . | . . . . . . . Highest Temperature 315 | . 54 72 56 170 315 118 Average Temperature 70 | . 33 26 14 89 118 74 Received Heat Transfer 1434 | . 90 102 78 138 720 306 Siege Activations . | . . . . . . . Martial Activations . | . . . . . . . Shielding Activations . | . . . . . . . Robots Disrupted . | . . . . . . . Combat Hostiles . | . . . . . . . Robots Corrupted 4 | . . . 2 1 . 1 Combat Hostiles 1 | . . . . . . 1 Parts Fried 9 | . 1 . 4 3 . 1 Impact Corruptions 11 | . . . 5 3 . 3 Robots Melted 1 | . . . . . 1 . Combat Hostiles 1 | . . . . . 1 . Parts Melted 7 | . . . 3 . 3 1 Heat Transferred 3310 | . . 444 1286 185 1284 111 Parts Sabotaged . | . . . . . . . Parts Stolen . | . . . . . . . Parts Stripped . | . . . . . . . Power Chain Reactions . | . . . . . . . Alert | -11 -10 -10 -9 -9 -8 -8 ------- Run | Yrd Mat Min Mat Min Mat Sto Maximum Alert Level 1 | . . . 1 . . . Low Security (%) 99 | 100 100 100 98 100 100 100 Level 1 . | . . . 1 . . . Level 2 . | . . . . . . . Level 3 . | . . . . . . . Level 4 . | . . . . . . . Level 5 . | . . . . . . . High Security . | . . . . . . . Max Security . | . . . . . . . Peak Influence 207 | . 100 35 207 77 135 50 Initial 77 | . . 27 . 77 2 12 Average 28 | . 14 11 58 14 40 4 Influence Increases 1225 | . 127 125 381 70 416 106 Destroy 0b10 Robot/C 740 | . 100 100 280 40 140 80 Destroy 0b10 Robot/NC 70 | . 5 5 30 5 20 5 Destroy Leader 158 | . 22 20 56 10 30 20 Destroy Structure 2 | . . . . . 1 1 Lose Combat Pursuer 255 | . . . 15 15 225 . Influence Decreases 1193 | . 55 197 182 262 393 104 Entered New Map 190 | . . 45 . 122 5 18 Time Decay 805 | . 45 107 182 130 285 56 Lost Part 198 | . 10 45 . 10 103 30 Squads Dispatched 8 | . 1 . 2 . 3 2 Investigation 1 | . . . 1 . . . Extermination . | . . . . . . . Reinforcement 5 | . 1 . 1 . 3 . Assault 2 | . . . . . . 2 Garrison . | . . . . . . . Intercept . | . . . . . . . Searches Triggered . | . . . . . . . Construction Impeded . | . . . . . . . Haulers Reinforced . | . . . . . . . Active Scanning Responses . | . . . . . . . Cargo Convoy Interrupts . | . . . . . . . Stealth | -11 -10 -10 -9 -9 -8 -8 --------- Run | Yrd Mat Min Mat Min Mat Sto Distress Signals 13 | . 1 . 4 . 8 . Communications Jammed . | . . . . . . . Distress Signals . | . . . . . . . Times Spotted 97 | . 13 8 23 6 36 11 Peak Tracking Total 13 | . 5 3 6 3 13 8 Tactical Retreats 8 | . . . 1 1 6 . Traps | -11 -10 -10 -9 -9 -8 -8 ------- Run | Yrd Mat Min Mat Min Mat Sto Traps Triggered 3 | . . . 1 . . 2 Indirectly . | . . . . . . . Trap Hack Attempts . | . . . . . . . Triggered . | . . . . . . . Disarmed . | . . . . . . . Reprogrammed . | . . . . . . . Reused . | . . . . . . . Traps Extracted . | . . . . . . . Installed . | . . . . . . . Triggered . | . . . . . . . Machines | -11 -10 -10 -9 -9 -8 -8 ---------- Run | Yrd Mat Min Mat Min Mat Sto Machines Disabled 1 | . 1 . . . . . Max in Single Turn 1 | . 1 . . . . . Machines Repaired . | . . . . . . . Machines Dismantled . | . . . . . . . Machines Sabotaged . | . . . . . . . Overloaded Fab Kills . | . . . . . . . Hacking | -11 -10 -10 -9 -9 -8 -8 --------- Run | Yrd Mat Min Mat Min Mat Sto Machines Accessed 4 | . . . 1 . . 3 Terminals 2 | . . . . . . 2 Fabricators . | . . . . . . . Repair Stations 1 | . . . . . . 1 Recycling Units . | . . . . . . . Scanalyzers 1 | . . . 1 . . . Garrison Access . | . . . . . . . Total Hacks 13 | . . . 6 . . 7 Successful 11 | . . . 6 . . 5 Failed 2 | . . . . . . 2 Catastrophic . | . . . . . . . Database Lockouts . | . . . . . . . Manual . | . . . . . . . Terminals 3 | . . . . . . 3 Fabricators . | . . . . . . . Repair Stations 4 | . . . . . . 4 Recycling Units . | . . . . . . . Scanalyzers 6 | . . . 6 . . . Garrison Access . | . . . . . . . Terminal Hacks 1 | . . . . . . 1 Open Door 1 | . . . . . . 1 Fabricator Hacks . | . . . . . . . Repair Station Hacks 4 | . . . . . . 4 Scan Component 2 | . . . . . . 2 Repair 2 | . . . . . . 2 Recycling Unit Hacks . | . . . . . . . Scanalyzer 6 | . . . 6 . . . Insert Component 3 | . . . 3 . . . Analyze 3 | . . . 3 . . . Garrison Access Hacks . | . . . . . . . Unauthorized Hacks . | . . . . . . . Terminals . | . . . . . . . Fabricators . | . . . . . . . Repair Stations . | . . . . . . . Recycling Units . | . . . . . . . Scanalyzers . | . . . . . . . Garrison Access . | . . . . . . . Data Cores Recovered 1 | . . . . . 1 . Used . | . . . . . . . Hacking Detections 1 | . . . . . . 1 Full Trace Events . | . . . . . . . Feedback Events . | . . . . . . . Feedback Blocked . | . . . . . . . Robot Schematics Acquired . | . . . . . . . Robots Built . | . . . . . . . Authchips . | . . . . . . . Time . | . . . . . . . Total Robot Build Rating . | . . . . . . . Part Schematics Acquired 3 | . . . 3 . . . Parts Built . | . . . . . . . Authchips . | . . . . . . . Time . | . . . . . . . Total Part Build Rating . | . . . . . . . Parts Repaired 2 | . . . . . . 2 Time 76 | . . . . . . 76 Parts Recycled . | . . . . . . . Recycled Matter . | . . . . . . . Retrieved Matter . | . . . . . . . Retrieved Components . | . . . . . . . Parts Scanalyzed 3 | . . . 3 . . . Part Schematics Acquired 3 | . . . 3 . . . Parts Damaged . | . . . . . . . Bothacking | -11 -10 -10 -9 -9 -8 -8 ------------ Run | Yrd Mat Min Mat Min Mat Sto Used RIF Installer . | . . . . . . . Robots Hacked . | . . . . . . . Non-combat . | . . . . . . . Combat . | . . . . . . . Robot Hacks Applied . | . . . . . . . Relay Couplers Released . | . . . . . . . Fabnet Peak Effective % . | . . . . . . . Robots Rewired . | . . . . . . . Allies Hacked . | . . . . . . . Hacks Repelled . | . . . . . . . Allies | -11 -10 -10 -9 -9 -8 -8 -------- Run | Yrd Mat Min Mat Min Mat Sto Total Allies 3 | . . . . 1 . 2 Largest Group 2 | . . . . 1 . 2 Highest-Rated Group 62 | . . . . 31 . 62 Highest-Rated Ally 31 | . . . . 31 . 31 Total Orders . | . . . . . . . Ally Attacks 3 | . . . . . . 3 Total Damage 20 | . . . . . . 20 Kills . | . . . . . . . Allies Corrupted . | . . . . . . . Allies Melted . | . . . . . . . Intel | -11 -10 -10 -9 -9 -8 -8 ------- Run | Yrd Mat Min Mat Min Mat Sto Active Infowar (turns) 597 | . 393 204 . . . . Terrain 597 | . 393 204 . . . . Robot Analysis Total . | . . . . . . . Derelict Logs Recovered 1 | . . . . 1 . . Drone Launches . | . . . . . . . Drone Recoveries . | . . . . . . . Exploration | -11 -10 -10 -9 -9 -8 -8 ------------- Run | Yrd Mat Min Mat Min Mat Sto Turns Passed 3671 | 84 414 373 676 661 1042 421 Spaces Moved 1822 | 63 154 210 313 383 491 208 Core 27 | 26 . 1 . . . . Treads 817 | . . . 302 383 132 . Legs 978 | 37 154 209 11 . 359 208 Wheels . | . . . . . . . Hover . | . . . . . . . Flight . | . . . . . . . Fastest Speed 50 | 50 120 120 160 160 120 105 Average Speed 148 | 109 120 135 161 160 164 118 Slowest Speed 270 | 250 120 190 190 160 260 270 Overloaded Moves . | . . . . . . . Propulsion Burnouts . | . . . . . . . Robots Hopped . | . . . . . . . Potential Cave-ins . | . . . . . . . Cave-ins Triggered . | . . . . . . . Exploration Rate (%) 34 | 5 37 43 24 82 26 26 Regions Visited 6 Branch Regions 3 Pre-discovered Areas . | . . . . . . . Known Exits Taken . | . . . . . . . Unknown Exits Taken 6 | 1 1 1 1 1 1 . Scrap Searched 3 | . . . . 3 . . Spaces Dug . | . . . . . . . Terrain Destroyed . | . . . . . . . Melee . | . . . . . . . Projectile . | . . . . . . . AOE . | . . . . . . . Terrain Rammed . | . . . . . . . Walls Destroyed . | . . . . . . . Machines Disabled . | . . . . . . . Actions | -11 -10 -10 -9 -9 -8 -8 --------- Run | Yrd Mat Min Mat Min Mat Sto Total 2483 | 74 345 256 413 409 634 352 Wait 272 | . 164 1 2 . 22 83 Move 1816 | 62 153 209 312 382 490 208 Hop . | . . . . . . . Pick Up 73 | 5 6 4 21 4 22 11 Fast Attach 23 | 5 1 1 1 . 8 7 Attach 38 | 1 . 6 5 2 15 9 Detach 2 | . . . . . . 2 Swap 15 | . . 1 6 . 4 4 Drop 38 | . 2 3 8 4 13 8 Fire 173 | 1 19 31 52 10 54 6 Melee 27 | . . . 6 7 . 14 Ram . | . . . . . . . Kick . | . . . . . . . Crush 6 | . . . . . 6 . Escape Stasis . | . . . . . . . Rewire . | . . . . . . . Trap . | . . . . . . . Miscellaneous . | . . . . . . . Route ------- -11/Scrapyard -10/Materials -10/Mines -9/Materials -9/Mines -8/Materials -8/Storage History --------- Turn | Location | Event 20 | -11/Scrapyard | Discovered new exit (range 15) 85 | -11/Scrapyard | Entered Materials 304 | -10/Materials | Build established: Mutant 397 | -10/Materials | Discovered new exit (range 16) 499 | -10/Materials | Entered Mines 502 | -10/Mines | Met a Derelict bent on vengeance 788 | -10/Mines | Core integrity fell below 50% 810 | -10/Mines | Lost 5 parts (1p2n2w) 867 | -10/Mines | Discovered new exit (range 3) 872 | -10/Mines | Entered Materials 872 | -9/Materials | Evolved 2 slots: Propulsion x2 1065 | -9/Materials | Build established: Scavenger-Mutant 1460 | -9/Materials | Build established: Mutant 1531 | -9/Materials | Discovered new exit (range 9) 1548 | -9/Materials | Entered Mines 1628 | -9/Mines | Learned Materials terminal intel 1748 | -9/Mines | Received a Mining Laser from a helpful Derelict 2188 | -9/Mines | Discovered new exit (range 7) 2209 | -9/Mines | Entered Materials 2209 | -8/Materials | Evolved 2 slots: Power x1, Utility x1 2210 | -8/Materials | Loaded intel: 12 terminal locations 2326 | -8/Materials | Lost 3 parts (1p1u1w) 2424 | -8/Materials | Lost 3 parts (2n1w) 2596 | -8/Materials | Lost 3 parts (1p1n1w) 2887 | -8/Materials | Build established: Scavenger-Mutant 3184 | -8/Materials | Core integrity fell below 50% 3239 | -8/Materials | Discovered new exit (range 11) 3251 | -8/Materials | Entered Storage 3276 | -8/Storage | Lost 4 parts (1p1n1u1w) 3306 | -8/Storage | Repaired Carbon-fiber Leg 3347 | -8/Storage | Repaired Titanium Leg 3532 | -8/Storage | Build established: Mutant 3581 | -8/Storage | Met a pair of Derelict thieves 3659 | -8/Storage | Core integrity fell below 20% 3672 | -8/Storage | Destroyed by G-47 Trooper with Particle Gun Last Messages --------------- M-28 Smith repairs B-36 Bruiser. Destroyed Melee Analysis Suite. L-31 Rogue system corrupted by crushing effect. Carbon-fiber Leg destroyed. System corrupted by crushing effect (+3). L-31 Rogue system terminally corrupted. Core Shielding fried. K-01 Serf collects debris. M-28 Smith repairs B-36 Bruiser. B-36 Bruiser destroyed. K-01 Serf collects debris. U-05 Engineer destroyed. K-01 Serf collects debris. System corrupted: Heat flow error (+147). K-01 Serf collects debris. Critical hit (Smash). VSS Leg destroyed. System corrupted by crushing effect (+1). K-01 Serf collects debris. K-01 Serf destroyed. Map ----- +----------------------------------------------------+ | ??????????????????????#"" """# #??????? | | ??????????????????????#"" """# #??????? | | ??????????????????????#"T + #??????? | | ??????????????????????#"" """# #??????? | | ??????????????????????#"" """# #??????? | | ??????????????????????### """# #??????? | | ????????????????????????# # #??????? | | ????????????????????????########## #??????? | | ??????????????????????????????? # #??????? | | ???????????????????????????????" # #??????? | | ???????????????????????????????" # #??????? | | ???????????????????????????????" # #??????? | | ???????????????????????????????" + #??????? | | ????????????????????????????"""" # #??????? | | ????????????????????????# """ # #??###?? | | ????????????????????????# + #### ### | | ????????????????????????# # # # | | ????????????????????????########## # # | | ?????????????????????????????????# # # | | ?????????????????################# # # | | ?????????????????? # /# | | ?????????????????? k #####[! # # | | ????????????????????? |ig* #???# + ! # | | ??????????????????????? %*%%=#???# # # | | ????????????????????????#l[gg#???# # # | | ????????????????????????#@m/!#???# # " # | | ????????????????????????#%b! #???# # T # | | ????????????????????????#!##+##### # " # | | ????????????????????????# # # # | | ????????????????????????# = ! # [##+##### | | ????????????????????????# # #???? | | ????????????????????????# = !#= #???? | | ????????????????????????# / #???? | | ????????????????????????# # #???? | | ????????????????????????# # #???? | | ????????????????????????# % # ####???? | | ????????????????????????# + #??????? | | ????????????????????????###########+####????? | | ?????????????????????????????????## #????? | | ?????????????????????????????????#T #????? | | ????????????????????????????????###" "##????? | | ????????????????????????????????# = !#????? | | ????????????????????????????????#!! #????? | | ????????????????????????????????# !!#????? | | ????????????????????????????????#! ! !#????? | | ????????????????????????????????########????? | | ????????????????????????????????????????????? | | ????????????????????????????????????????????? | | ????????????????????????????????????????????? | | ????????????????????????????????????????????? | +----------------------------------------------------+ Best States ------------- Heat Dissipation 41 Coolant Potential 50 Energy Generation 21 Energy Capacity 325 Matter Stores 300 Matter Capacity 300 Sight Range 16 Terrain Scan Range 14 Terrain Scan Density 10 Armor Coverage 150 Weapon Shielding 33 Evasion (%) 55 Recoil Reduction 4 Offensive Hacking 10 Item Schematics ----------------- Imp. Treads | -9/Materials | Scanalyzed Lgt. Armor Plating | -9/Materials | Scanalyzed Lgt. Assault Rifle | -9/Materials | Scanalyzed Robot Schematics ------------------ None Fabricated ------------ Nothing Repaired ---------- Carbon-fiber Leg | 23% | -8/Storage Titanium Leg | 46% | -8/Storage Alien Tech Used ----------------- None Achievements -------------- None Challenges ------------ None Game ------ Seed HellfireFactoryDiverter Manual? 0 Play Time 00:44:30 Cumulative 8.2 hours Start 2025.07.27 @ 02:37:13 End 2025.07.27 @ 16:54:00 Sessions 1 Manual Loads 0 Difficulty Rogue Special Mode None Game No. 12 Rogue 3 Adventurer 9 Explorer 0 Win Type - Total 0 Types 0/0/0/0/0/0/0/0/0/0 Lore% 9 Gallery% 17 Achievement% 16 Wizard Run 0 Options --------- Layout 1 ASCII 0 Keyboard 0 Movement Numpad Keybinds 0 Fullscreen 1 Font 24/Smallcaps Map View 50x35 Zoom Use 0% Tactical HUD 0 Map Filters NONE Filters NONE Steam 1 RUN: 9eca1884-f8e9-4db1-a8b4-bee2899f2e16